Cogmind - Beta 13 @@@ ROGUE MODE // 2024.04.04 @ 19:26:38 Player: Senjai Result: Smashed by cave-in Performance ------------- Evolutions (0) 0 Regions Visited (1) 200 Robots Destroyed (18) 90 Value Destroyed (236) 236 Prototype IDs (0) 0 Alien Tech Used (0) 0 Bonus (0) 0 TOTAL SCORE: 526 Bonus ------- None Cogmind --------- Core Integrity 0/250 Matter 274/300 Energy 250/250 System Corruption 13% Temperature Cool (0) Movement Core (1500) Ox29 Location -10/Materials Parts ------- > --- POWER (1) -------- Ion Engine > --- PROPULSION (2) --- Light Treads Light Treads > --- UTILITY (2) ------ Huge Storage Unit Light Armor Plating > --- WEAPON (2) ------- Assault Rifle > --- INVENTORY (25) --- Light Ion Engine Aluminum Leg Aluminum Leg Aluminum Leg Compact Wheel Heat Sink Medium Storage Unit Medium Storage Unit Huge Storage Unit Huge Storage Unit Huge Storage Unit Medium Matter Pod (21) Sensor Array Signal Interpreter Improved Terrain Scanner Light Armor Plating Light Armor Plating Medium Laser Assault Rifle Assault Rifle Assault Rifle Assault Rifle Peak State ------------ > --- POWER ------------ Ion Engine > --- PROPULSION ------- Aluminum Leg Aluminum Leg > --- UTILITY ---------- Medium Storage Unit Improved Terrain Scanner > --- WEAPON ----------- Medium Laser Medium Laser > --- INVENTORY -------- Light Ion Engine Light Treads Light Treads Wheel Compact Wheel Heat Sink Small Storage Unit Medium Storage Unit Signal Interpreter Tractor Beam [Rating: 10] Favorites ----------- Power Ion Engine Engine Ion Engine Propulsion Light Treads Treads Light Treads Leg Aluminum Leg Utility Light Armor Plating Device Improved Terrain Scanner Storage Huge Storage Unit Protection Light Armor Plating Weapon Assault Rifle Energy Gun Medium Laser Ballistic Gun Assault Rifle Slashing Weapon Mining Claw Build | -11 -10 ------- Run | Yrd Mat Slots Evolved . | . . Power . | . . Propulsion . | . . Utility . | . . Weapon . | . . Parts Attached 21 | 8 13 Power 1 | 1 . Engine 1 | 1 . Core . | . . Reactor . | . . Propulsion 6 | 2 4 Treads 4 | 2 2 Leg 2 | . 2 Wheel . | . . Hover . | . . Flight . | . . Utility 7 | 3 4 Device 2 | 2 . Storage 3 | 1 2 Processor . | . . Hackware . | . . Protection 2 | . 2 Artifact . | . . Weapon 7 | 2 5 Energy Gun 3 | 2 1 Energy Cannon . | . . Ballistic Gun 3 | . 3 Ballistic Cannon . | . . Launcher . | . . Special Weapon . | . . Impact Weapon . | . . Slashing Weapon 1 | . 1 Piercing Weapon . | . . Special Melee Weapon . | . . Unidentified Prototypes . | . . Parts Lost 2 | . 2 Power . | . . Propulsion . | . . Utility . | . . Weapon 2 | . 2 Highest Loss Streak 1 | . 1 To Critical Strikes . | . . Average Slot Usage (%) 100 | . 100 Engine 14 | . 14 Treads 24 | . 24 Leg 3 | . 3 Device 1 | . 1 Storage 14 | . 14 Protection 12 | . 12 Energy Gun 5 | . 5 Ballistic Gun 21 | . 21 Naked Turns . | . . Heaviest Build 92 | 15 92 Greatest Support 40 | 40 40 Greatest Overweight (x) 2 | . 2 Average Overweight (x) 1 | . 1 Largest Inventory Capacity 25 | 8 25 Average Capacity 20 | 6 22 Most Carried 23 | 6 23 Average Carried 15 | 4 17 Final Capacity 25 | 8 25 Final Carried 22 | 6 22 Class Distribution -------------------- 100% | Mutant Dominant Class ---------------- Mutant | -10/Materials Resources | -11 -10 ----------- Run | Yrd Mat Matter Collected 515 | 280 235 Remotely 19 | 19 . Salvage Created 358 | 87 271 Parts 28 | 5 23 Haulers Intercepted . | . . Recyclers Shooed . | . . Parts Field Recycled . | . . Retrieved Matter . | . . Parts Self-Destructed . | . . Prevented . | . . Kills | -11 -10 ------- Run | Yrd Mat Combat Hostiles Destroyed 11 | . 11 Guns 11 | . 11 Classes Destroyed 7 | 3 4 Worker 1 | 1 . Tunneler 1 | 1 . Recycler 1 | 1 . Operator 1 | . 1 Watcher 3 | . 3 Swarmer 9 | . 9 Grunt 2 | . 2 Best Kill Streak 8 | 2 8 Combat Bots Only 6 | . 6 Max Kills in Single Turn 2 | 1 2 Gunslinging 1 | . 1 Exploded . | . . Melee . | . . Uniques/NPCs Destroyed . | . . Combat | -11 -10 -------- Run | Yrd Mat Hostile Shots Fired 59 | . 59 Missed 13 | . 13 Damage Taken 848 | . 848 Core 292 | . 292 Absorbed by Shields . | . . Core Remaining (%) 100 | 100 . Volleys Fired 38 | 5 33 Largest 2 | 2 2 Hottest 100 | 100 100 Shots Fired 74 | 10 64 Gun 74 | 10 64 Cannon . | . . Launcher . | . . Special . | . . Kinetic 42 | . 42 Thermal 32 | 10 22 Explosive . | . . Electromagnetic . | . . Robot Hit Streak 12 | 8 12 Robot Miss Streak 3 | 1 3 Penetration Max . | . . Secondary Targets 4 | . 4 Max Gunslinging Chain 1 | . 1 Shots Hit Robots 49 | 8 41 Core Hits 26 | 5 21 Critical Kills . | . . Critical Parts Destroyed . | . . Critical Strikes 1 | . 1 Burn 1 | . 1 Melee Attacks 9 | . 9 Impact . | . . Slashing 9 | . 9 Piercing . | . . Sneak Attacks . | . . Combat Hostiles . | . . Follow-up Attacks . | . . Damage Inflicted 666 | 106 560 Guns 621 | 102 519 Cannons . | . . Explosions . | . . Melee . | . . Ramming 45 | 4 41 Kinetic 307 | . 307 Thermal 314 | 102 212 Explosive . | . . Electromagnetic . | . . Impact . | . . Slashing . | . . Piercing . | . . Highest Corruption 9 | . 9 Average Corruption 8 | . 8 Corruption Purged . | . . Corruption Blocked . | . . Effects 1 | . 1 Heat Flow Errors 1 | . 1 Overload Shots . | . . Overflow Damage . | . . Projectiles . | . . Explosions . | . . Melee . | . . Knockbacks . | . . Impact . | . . Kinetic . | . . Secondary . | . . Self-Inflicted Damage 35 | . 35 Shots . | . . Rammed 5 | 3 2 Targets Rammed 6 | 4 2 Kicked . | . . Crushed 1 | 1 . Highest Temperature 195 | 78 195 Average Temperature 54 | 37 59 Received Heat Transfer 66 | . 66 Siege Activations . | . . Robots Corrupted . | . . Combat Hostiles . | . . Parts Fried . | . . Impact Corruptions . | . . Robots Melted . | . . Combat Hostiles . | . . Parts Melted 1 | . 1 Heat Transferred 999 | 296 703 Parts Sabotaged . | . . Parts Stolen . | . . Parts Stripped . | . . Power Chain Reactions . | . . Alert | -11 -10 ------- Run | Yrd Mat Peak Influence 213 | 15 213 Initial 9 | . 9 Average 38 | 6 43 Maximum Alert Level 1 | . 1 Low Security (%) 96 | 100 95 Level 1 3 | . 4 Level 2 . | . . Level 3 . | . . Level 4 . | . . Level 5 . | . . High Security . | . . Max Security . | . . Squads Dispatched 1 | . 1 Investigation 1 | . 1 Extermination . | . . Reinforcement . | . . Assault . | . . Garrison . | . . Intercept . | . . Searches Triggered . | . . Construction Impeded . | . . Haulers Reinforced . | . . Active Scanning Responses . | . . Cargo Convoy Interrupts . | . . Stealth | -11 -10 --------- Run | Yrd Mat Distress Signals 1 | . 1 Communications Jammed . | . . Distress Signals . | . . Times Spotted 20 | . 20 Peak Tracking Total 5 | . 5 Tactical Retreats . | . . Traps | -11 -10 ------- Run | Yrd Mat Traps Triggered 1 | . 1 Indirectly . | . . Trap Hack Attempts . | . . Triggered . | . . Disarmed . | . . Reprogrammed . | . . Reused . | . . Traps Extracted . | . . Installed . | . . Triggered . | . . Machines | -11 -10 ---------- Run | Yrd Mat Machines Disabled . | . . Max in Single Turn . | . . Machines Repaired . | . . Machines Dismantled . | . . Machines Sabotaged . | . . Overloaded Fab Kills . | . . Hacking | -11 -10 --------- Run | Yrd Mat Machines Accessed 6 | . 6 Terminals 5 | . 5 Fabricators . | . . Repair Stations 1 | . 1 Recycling Units . | . . Scanalyzers . | . . Garrison Access . | . . Total Hacks 15 | . 15 Successful 5 | . 5 Failed 10 | . 10 Catastrophic 3 | . 3 Database Lockouts . | . . Manual 9 | . 9 Terminals 13 | . 13 Fabricators . | . . Repair Stations 2 | . 2 Recycling Units . | . . Scanalyzers . | . . Garrison Access . | . . Terminal Hacks 3 | . 3 Unreport Threat 2 | . 2 Hauler Manifests 1 | . 1 Fabricator Hacks . | . . Repair Station Hacks . | . . Recycling Unit Hacks . | . . Scanalyzer . | . . Garrison Access Hacks . | . . Unauthorized Hacks 2 | . 2 Terminals 2 | . 2 Botnet 2 | . 2 Fabricators . | . . Repair Stations . | . . Recycling Units . | . . Scanalyzers . | . . Garrison Access . | . . Data Cores Recovered . | . . Used . | . . Hacking Detections 6 | . 6 Full Trace Events . | . . Feedback Events . | . . Feedback Blocked . | . . Robot Schematics Acquired . | . . Robots Built . | . . Authchips . | . . Time . | . . Total Robot Build Rating . | . . Part Schematics Acquired . | . . Parts Built . | . . Authchips . | . . Time . | . . Total Part Build Rating . | . . Parts Repaired . | . . Time . | . . Parts Recycled . | . . Recycled Matter . | . . Retrieved Matter . | . . Retrieved Components . | . . Parts Scanalyzed . | . . Part Schematics Acquired . | . . Parts Damaged . | . . Bothacking | -11 -10 ------------ Run | Yrd Mat Used RIF Installer . | . . Robots Hacked . | . . Non-combat . | . . Combat . | . . Robot Hacks Applied . | . . Relay Couplers Released . | . . Fabnet Peak Effective % . | . . Robots Rewired . | . . Allies Hacked . | . . Hacks Repelled . | . . Allies | -11 -10 -------- Run | Yrd Mat Total Allies . | . . Largest Group . | . . Highest-Rated Group . | . . Highest-Rated Ally . | . . Total Orders . | . . Ally Attacks . | . . Total Damage . | . . Kills . | . . Allies Corrupted . | . . Allies Melted . | . . Intel | -11 -10 ------- Run | Yrd Mat Robot Analysis Total . | . . Derelict Logs Recovered . | . . Drone Launches . | . . Drone Recoveries . | . . Exploration | -11 -10 ------------- Run | Yrd Mat Turns Passed 1616 | 236 1380 Spaces Moved 541 | 127 414 Core 5 | 5 . Treads 449 | 122 327 Legs 87 | . 87 Wheels . | . . Hover . | . . Flight . | . . Fastest Speed 50 | 50 120 Average Speed 241 | 155 267 Slowest Speed 320 | 160 320 Overloaded Moves . | . . Propulsion Burnouts . | . . Robots Hopped . | . . Cave-ins Triggered 2 | . 2 Exploration Rate (%) 33 | 9 58 Regions Visited 1 Branch Regions . Pre-discovered Areas . | . . Known Exits Taken . | . . Unknown Exits Taken 1 | 1 . Scrap Searched . | . . Spaces Dug 7 | . 7 Terrain Destroyed 7 | . 7 Melee 7 | . 7 Projectile . | . . AOE . | . . Terrain Rammed 7 | . 7 Walls Destroyed . | . . Machines Disabled . | . . Actions | -11 -10 --------- Run | Yrd Mat Total 708 | 149 559 Wait 59 | . 59 Move 540 | 126 414 Hop . | . . Pick Up 22 | 6 16 Fast Attach 10 | 7 3 Attach 1 | . 1 Detach 1 | . 1 Swap 10 | 1 9 Drop 5 | . 5 Fire 38 | 5 33 Melee 9 | . 9 Ram 7 | . 7 Kick . | . . Crush 6 | 4 2 Escape Stasis . | . . Rewire . | . . Trap . | . . Miscellaneous . | . . Route ------- -11/Scrapyard -10/Materials (discovered 1 exit: [*Mat]) History --------- Turn | Location | Event 43 | -11/Scrapyard | Discovered new exit (range 16) 237 | -11/Scrapyard | Entered Materials 329 | -10/Materials | Build established: Mutant 1259 | -10/Materials | Discovered new exit (range 15) 1565 | -10/Materials | Crushed by falling debris 1565 | -10/Materials | Core integrity fell below 50% 1618 | -10/Materials | Crushed by falling debris 1618 | -10/Materials | Smashed by cave-in Last Messages --------------- 01578_ Destabilizing: System corrupted (+1). 01578_ Destabilizing: Core damaged (-5). 01581_ System corrupted: Heat flow error (+152). 01581_ Rammed Wall. 01581_ Destabilizing: Core damaged (-2). 01581_ Destabilizing: Core damaged (-12). 01584_ Rammed Wall. 01584_ Lgt. Treads broken. 01584_ Destabilizing: Short circuit. 01584_ Destabilizing: System corrupted (+2). 01589_ Rammed Wall. 01589_ Destabilizing: Core damaged (-2). 01589_ Lgt. Treads broken. 01589_ Destabilizing: Short circuit. 01604_ Slammed into Wall. 01604_ Destabilizing: Core damaged (-12). 01618_ The unstable cave ceiling collapses. 01618_ Crushed by falling debris. 01618_ Broken EM Pulse Gun destroyed. 01618_ System corrupted by crushing effect (+4). Map ----- +----------------------------------------------------+ | # # """ ########### #???# #?? | | ########## # """ # # #???# #?? | | # # # # #???# #?? | | """ # + "T" # # #???# #?? | | """"" # # """ # """ + #???# #?? | | """"" # ####### """"" # #???#####+####### | | """"" # ## """"" # ####### # | | """ # + """"" # # """ | | + ## """ # + """ | | # ### ############# # """ | | ########## #?# #???????????########### # | | ???????? #?# #???????????????????#### ###### | | ?????? #?# #???????????????????? # #????? | | ????? #?# #????????????????????? + #????? | | ????# ######?# #????????????????????" # #????? | | ????# ???????# ???????????????????"" # #????? | | ????# ????????? ?????????????????? ?# #????? | | ????# ????????? ?????????????########## #????? | | ????# ?????????? ?????????????# # #????? | | ????# ?????????? ?????????????# """ # #????? | | ????#??????????? ?????????????# ""R" # #?###? | | ???????????????? ?????????????# "" " # # #? | | ???????????????? ?????????????# + # #?? | | ???????????????????????????????# """ # #?? | | ????????????????????????###????# """ # # ##?? | | ????????????????????????#@#????# """ # ###??? | | ????????????????????????######## # #????? | | ????????????????????????# ########### #????? | | ????????????????????????# #?????????# #????? | | ????????????????????????# #?????????# #????? | | ????????????????????????# ########### #????? | | ????????????????????????# # #????? | | ????????????????????????# + #????? | | ????????????????????????# # ^^ #????? | | ????????????????????????# #+#+####### <^#????? | | ????????????????????????# # #??# #????? | | ????????????????????????# # #??#####????? | | ?????????????????????#### # #???????????? | | ?????????????????????# #" # #???????????? | | ?????????????????????########## #???????????? | | ??????????????????????????????# #???????????? | | ??????????????????????????????########???????????? | | ?????????????????????????????????????????????????? | | | | | | | | | | | | | | | +----------------------------------------------------+ Best States ------------- Heat Dissipation 25 Energy Generation 10 Energy Capacity 250 Matter Stores 300 Matter Capacity 300 Sight Range 16 Terrain Scan Range 16 Terrain Scan Density 10 Armor Coverage 150 Evasion (%) 55 Recoil Reduction 2 Item Schematics ----------------- None Robot Schematics ------------------ None Fabricated ------------ Nothing Alien Tech Used ----------------- None Achievements -------------- None Challenges ------------ None Game ------ Seed GlidesysTractorBoregun Manual? 0 Play Time 00:16:54 Cumulative 7.8 hours Start 2024.04.04 @ 18:05:08 End 2024.04.04 @ 19:26:38 Sessions 2 Manual Loads 0 Difficulty Rogue Special Mode None Game No. 6 Rogue 4 Adventurer 2 Explorer 0 Win Type - Total 0 Types 0/0/0/0/0/0/0/0/0 Lore% 7 Gallery% 14 Achievement% 17 Wizard Run 0 Options --------- Layout 1 ASCII 0 Keyboard 1 Movement Numpad Keybinds 0 Fullscreen 2 Font 32/SmallcapsGlow Map View 50x35 Zoom Use 0% Tactical HUD 1 Map Filters NONE Filters NONE Steam 1 RUN: a02acc5c-6149-4122-b9d8-6d946737ea46